Cogmind - Beta 9.2 @@@ ROGUE MODE // 2019.11.28 @ 21:34:13 Player: FooBarZisch Result: Self-destructed Performance ------------- Evolutions (1) 500 Regions Visited (3) 600 Robots Destroyed (26) 130 Value Destroyed (414) 414 Prototype IDs (1) 20 Alien Tech Used (0) 0 Bonus (0) 0 TOTAL SCORE: 1664 Bonus ------- None Cogmind --------- Core Integrity 159/400 Matter 299/300 Energy 15/125 System Corruption 1% Temperature Cool (597) Movement Rolling (110) Ox3 Location -9/Materials Parts ------- > --- POWER (1) -------- Light Ion Engine > --- PROPULSION (2) --- Wheel > --- UTILITY (4) ------ Large Storage Unit Large Storage Unit Visual Processing Unit Targeting Computer > --- WEAPON (2) ------- (None) > --- INVENTORY (16) --- Small Storage Unit Medium Storage Unit Large Matter Pod (150) Light Armor Plating Medium Laser Medium Laser Beam Cannon Advanced Beam Cannon Advanced Beam Cannon Advanced Beam Cannon Assault Rifle Shotgun Light Cannon Mining Claw Peak State ------------ > --- POWER ------------ Ion Engine > --- PROPULSION ------- Aluminum Leg Aluminum Leg > --- UTILITY ---------- Large Storage Unit Large Storage Unit Visual Processing Unit Targeting Computer > --- WEAPON ----------- Advanced Beam Cannon Advanced Beam Cannon > --- INVENTORY -------- Light Ion Engine Small Storage Unit Medium Storage Unit Large Matter Pod Light Armor Plating Medium Laser Medium Laser Beam Cannon Advanced Beam Cannon Advanced Beam Cannon Advanced Beam Cannon Assault Rifle Shotgun Light Cannon Mining Claw [Rating: 16] Favorites ----------- Power Ion Engine Engine Ion Engine Propulsion Aluminum Leg Leg Aluminum Leg Wheel Wheel Utility Large Storage Unit Storage Large Storage Unit Processor Visual Processing Unit Weapon Assault Rifle Energy Gun Medium Laser Energy Cannon Advanced Beam Cannon Ballistic Gun Assault Rifle Impact Weapon Hammer Build | -11 -10 -10 -9 ------- Run | Scr Mat Min Mat Slots Evolved 2 | . . . 2 Power . | . . . . Propulsion . | . . . . Utility 2 | . . . 2 Weapon . | . . . . Parts Attached 21 | 6 5 1 9 Power 2 | 1 . . 1 Engine 2 | 1 . . 1 Core . | . . . . Reactor . | . . . . Propulsion 3 | 2 . . 1 Treads . | . . . . Leg 2 | 2 . . . Wheel 1 | . . . 1 Hover . | . . . . Flight . | . . . . Utility 6 | 1 3 . 2 Device . | . . . . Storage 4 | 1 3 . . Processor 2 | . . . 2 Hackware . | . . . . Protection . | . . . . Artifact . | . . . . Weapon 10 | 2 2 1 5 Energy Gun 1 | 1 . . . Energy Cannon 3 | . . . 3 Ballistic Gun 5 | 1 1 1 2 Ballistic Cannon . | . . . . Launcher . | . . . . Special Weapon . | . . . . Impact Weapon 1 | . 1 . . Slashing Weapon . | . . . . Piercing Weapon . | . . . . Special Melee Weapon . | . . . . Unidentified Prototypes 1 | . . . 1 Parts Lost 6 | . . . 6 Power 1 | . . . 1 Propulsion 2 | . . . 2 Utility . | . . . . Weapon 3 | . . . 3 Highest Loss Streak 4 | . . . 4 Average Slot Usage (%) 96 | . 92 100 95 Engine 12 | . 14 14 10 Leg 24 | . 28 28 19 Storage 24 | . 23 28 22 Processor 7 | . . . 20 Energy Gun 7 | . 14 9 . Energy Cannon 2 | . . . 5 Ballistic Gun 14 | . 9 18 16 Naked Turns . | . . . . Heaviest Build 45 | 13 41 42 45 Greatest Support 20 | 20 20 20 20 Greatest Overweight (x) 14 | . 2 2 14 Average Overweight (x) 1 | . . 2 2 Largest Inventory Capacity 16 | 6 16 16 16 Average Capacity 13 | 4 9 16 16 Most Carried 16 | 3 8 8 16 Average Carried 7 | 1 4 7 11 Final Capacity 16 | 6 16 16 16 Final Carried 14 | . 7 8 14 Class Distribution -------------------- 100% | Mutant Dominant Class ---------------- Mutant | -10/Materials Mutant | -10/Mines Mutant | -9/Materials Resources | -11 -10 -10 -9 ----------- Run | Scr Mat Min Mat Matter Collected 782 | 220 50 116 396 Remotely . | . . . . Salvage Created 654 | . 50 36 568 Parts 49 | . 3 4 42 Haulers Intercepted 2 | . 1 . 1 Recyclers Shooed . | . . . . Parts Field Recycled . | . . . . Retrieved Matter . | . . . . Parts Self-Destructed . | . . . . Prevented . | . . . . Kills | -11 -10 -10 -9 ------- Run | Scr Mat Min Mat Combat Hostiles Destroyed 23 | . . 3 20 Guns 16 | . . 3 13 Cannons 7 | . . . 7 Classes Destroyed 5 | . 1 1 3 Worker 1 | . . . 1 Hauler 2 | . 1 . 1 Swarmer 17 | . . 3 14 Grunt 4 | . . . 4 Sentry 2 | . . . 2 Best Kill Streak 5 | . 1 3 5 Combat Bots Only 4 | . . 3 4 Max Kills in Single Turn 2 | . 1 1 2 Gunslinging . | . . . . Exploded . | . . . . Melee . | . . . . Uniques/NPCs Destroyed . | . . . . Combat | -11 -10 -10 -9 -------- Run | Scr Mat Min Mat Damage Taken 1027 | . . 67 960 Core 251 | . . 10 241 Absorbed by Shields . | . . . . Core Remaining (%) 98 | 100 . 96 . Volleys Fired 53 | . 3 4 46 Largest 2 | . 2 2 2 Hottest 136 | . 70 43 136 Shots Fired 104 | . 6 8 90 Gun 68 | . 6 8 54 Cannon 36 | . . . 36 Launcher . | . . . . Special . | . . . . Kinetic 65 | . 3 8 54 Thermal 39 | . 3 . 36 Explosive . | . . . . Electromagnetic . | . . . . Robot Hit Streak 9 | . 3 4 9 Robot Miss Streak 5 | . 1 1 5 Penetration Max . | . . . . Secondary Targets 2 | . . 2 . Max Gunslinging Chain 1 | . . 1 . Shots Hit Robots 65 | . 4 7 54 Core Hits 34 | . 2 3 29 Critical Hits 2 | . . . 2 Critical Kills 2 | . . . 2 Critical Parts Destroyed . | . . . . Melee Attacks 12 | . 12 . . Impact 12 | . 12 . . Slashing . | . . . . Piercing . | . . . . Sneak Attacks . | . . . . Combat Hostiles . | . . . . Follow-up Attacks . | . . . . Damage Inflicted 1048 | . 62 50 936 Guns 611 | . 62 50 499 Cannons 431 | . . . 431 Explosions . | . . . . Melee . | . . . . Ramming 6 | . . . 6 Kinetic 575 | . 26 50 499 Thermal 467 | . 36 . 431 Explosive . | . . . . Electromagnetic . | . . . . Impact . | . . . . Slashing . | . . . . Piercing . | . . . . Highest Corruption 1 | . . . 1 Average Corruption 1 | . . . 1 Corruption Purged . | . . . . Effects 1 | . . . 1 Data Loss (minor) 1 | . . . 1 Overload Shots . | . . . . Overflow Damage 1 | . . . 1 Projectiles 1 | . . . 1 Explosions . | . . . . Melee . | . . . . Knockbacks . | . . . . Impact . | . . . . Kinetic . | . . . . Secondary . | . . . . Self-Inflicted Damage . | . . . . Shots . | . . . . Rammed . | . . . . Targets Rammed 1 | . . . 1 Kicked 1 | . . . 1 Crushed . | . . . . Highest Temperature 618 | . 27 . 618 Average Temperature 242 | . 14 . 269 Received Heat Transfer 180 | . . . 180 Effects 10 | . . . 10 Shutdowns 2 | . . . 2 Matter Decay 2 | . . . 2 Short Circuit 1 | . . . 1 Damage (minor) 1 | . . . 1 Damage (major) 3 | . . . 3 Damage (core) 1 | . . . 1 Siege Activations . | . . . . Robots Corrupted . | . . . . Combat Hostiles . | . . . . Parts Fried . | . . . . Impact Corruptions . | . . . . Robots Melted . | . . . . Combat Hostiles . | . . . . Parts Melted 1 | . . . 1 Heat Transferred 888 | . 111 . 777 Parts Sabotaged . | . . . . Parts Stolen . | . . . . Parts Stripped . | . . . . Power Chain Reactions . | . . . . Missiles Intercepted . | . . . . Alert | -11 -10 -10 -9 ------- Run | Scr Mat Min Mat Peak Influence 302 | . 86 70 302 Average Influence 78 | . 47 19 157 Maximum Alert Level 1 | . . . 1 Low Security (%) 81 | 100 100 100 48 Level 1 18 | . . . 51 Level 2 . | . . . . Level 3 . | . . . . Level 4 . | . . . . Level 5 . | . . . . High Security . | . . . . Max Security . | . . . . Squads Dispatched 1 | . . . 1 Investigation . | . . . . Extermination . | . . . . Reinforcement 1 | . . . 1 Assault . | . . . . Garrison . | . . . . Intercept . | . . . . Construction Impeded . | . . . . Haulers Reinforced . | . . . . Stealth | -11 -10 -10 -9 --------- Run | Scr Mat Min Mat Distress Signals 2 | . . . 2 Communications Jammed . | . . . . Distress Signals . | . . . . Times Spotted 34 | . 4 3 27 Peak Tracking Total 6 | . 1 3 6 Tactical Retreats . | . . . . Traps | -11 -10 -10 -9 ------- Run | Scr Mat Min Mat Traps Triggered . | . . . . Indirectly . | . . . . Trap Hack Attempts . | . . . . Triggered . | . . . . Disarmed . | . . . . Reprogrammed . | . . . . Reused . | . . . . Traps Extracted . | . . . . Installed . | . . . . Triggered . | . . . . Machines | -11 -10 -10 -9 ---------- Run | Scr Mat Min Mat Machines Disabled . | . . . . Max in Single Turn . | . . . . Machines Sabotaged . | . . . . Garrisons Compromised . | . . . . Overloaded Fab Kills . | . . . . Fab Network Shutdowns . | . . . . Hacking | -11 -10 -10 -9 --------- Run | Scr Mat Min Mat Machines Accessed 4 | . 3 . 1 Terminals 4 | . 3 . 1 Fabricators . | . . . . Repair Stations . | . . . . Recycling Units . | . . . . Scanalyzers . | . . . . Garrison Access . | . . . . Total Hacks 12 | . 9 . 3 Successful 6 | . 4 . 2 Failed 6 | . 5 . 1 Catastrophic 2 | . 2 . . Database Lockouts . | . . . . Manual 13 | . 9 . 4 Terminals 12 | . 9 . 3 Fabricators . | . . . . Repair Stations . | . . . . Recycling Units . | . . . . Scanalyzers . | . . . . Garrison Access . | . . . . Terminal Hacks 2 | . 2 . . Part Schematic 1 | . 1 . . Branch Access Points 1 | . 1 . . Fabricator Hacks . | . . . . Repair Station Hacks . | . . . . Recycling Unit Hacks . | . . . . Scanalyzer . | . . . . Garrison Access Hacks . | . . . . Unauthorized Hacks 12 | . 7 . 5 Terminals 4 | . 2 . 2 Track 1 | . . . 1 Botnet 3 | . 2 . 1 Fabricators . | . . . . Repair Stations . | . . . . Recycling Units . | . . . . Scanalyzers . | . . . . Garrison Access . | . . . . Data Cores Recovered . | . . . . Used . | . . . . Hacking Detections 3 | . 3 . . Full Trace Events 1 | . 1 . . Feedback Events . | . . . . Feedback Blocked . | . . . . Robot Schematics Acquired . | . . . . Robots Built . | . . . . Matter . | . . . . Time . | . . . . Total Robot Build Rating . | . . . . Part Schematics Acquired 1 | . 1 . . Parts Built . | . . . . Matter . | . . . . Time . | . . . . Total Part Build Rating . | . . . . Parts Repaired . | . . . . Time . | . . . . Parts Recycled . | . . . . Recycled Matter . | . . . . Retrieved Matter . | . . . . Retrieved Components . | . . . . Parts Scanalyzed . | . . . . Part Schematics Acquired . | . . . . Parts Damaged . | . . . . Bothacking | -11 -10 -10 -9 ------------ Run | Scr Mat Min Mat Used RIF Installer . | . . . . Robots Hacked . | . . . . Non-combat . | . . . . Combat . | . . . . Robot Hacks Applied . | . . . . Relay Couplers Released . | . . . . Robots Rewired . | . . . . Allies Hacked . | . . . . Hacks Repelled . | . . . . Allies | -11 -10 -10 -9 -------- Run | Scr Mat Min Mat Total Allies . | . . . . Largest Group . | . . . . Highest-Rated Group . | . . . . Highest-Rated Ally . | . . . . Total Orders . | . . . . Ally Attacks . | . . . . Total Damage . | . . . . Kills . | . . . . Allies Corrupted . | . . . . Allies Melted . | . . . . Intel | -11 -10 -10 -9 ------- Run | Scr Mat Min Mat Robot Analysis Total . | . . . . Derelict Logs Recovered . | . . . . Drone Launches . | . . . . Drone Recoveries . | . . . . Exploration | -11 -10 -10 -9 ------------- Run | Scr Mat Min Mat Turns Passed 1471 | 51 456 422 542 Spaces Moved 751 | 40 294 226 191 Core 12 | 11 . . 1 Treads . | . . . . Legs 735 | 29 294 226 186 Wheels 4 | . . . 4 Hover . | . . . . Flight . | . . . . Fastest Speed 50 | 50 120 180 110 Average Speed 159 | 100 136 180 181 Slowest Speed 750 | 120 180 180 750 Overloaded Moves . | . . . . Propulsion Burnouts . | . . . . Robots Hopped . | . . . . Cave-ins Triggered . | . . . . Exploration Rate (%) 34 | 4 43 66 26 Regions Visited 3 Branch Regions 1 Pre-discovered Areas . | . . . . Known Exits Taken 1 | . 1 . . Unknown Exits Taken 2 | 1 . 1 . Scrap Searched 2 | . . 2 . Spaces Dug 2 | . 2 . . Terrain Destroyed 2 | . 2 . . Melee 2 | . 2 . . Projectile . | . . . . AOE . | . . . . Actions | -11 -10 -10 -9 --------- Run | Scr Mat Min Mat Total 898 | 49 324 233 292 Wait 39 | 1 1 2 35 Move 748 | 39 293 225 191 Hop . | . . . . Pick Up 23 | 3 9 1 10 Fast Attach 4 | 3 . . 1 Attach 9 | 3 2 . 4 Detach . | . . . . Swap 8 | . 3 1 4 Drop 1 | . 1 . . Fire 53 | . 3 4 46 Melee 12 | . 12 . . Ram . | . . . . Kick 1 | . . . 1 Crush . | . . . . Escape Stasis . | . . . . Rewire . | . . . . Trap . | . . . . Miscellaneous . | . . . . Route ------- -11/Scrapyard -10/Materials -10/Mines -9/Materials History --------- Turn | Location | Event 13 | -11/Scrapyard | Discovered new exit (range 15) 52 | -11/Scrapyard | Entered Materials 107 | -10/Materials | Identified exit to Mines 306 | -10/Materials | Build established: Mutant 508 | -10/Materials | Entered Mines 517 | -10/Mines | Met a Derelict bent on vengeance 910 | -10/Mines | Discovered new exit (range 11) 930 | -10/Mines | Entered Materials 930 | -9/Materials | Evolved 2 slots: Utility x2 1448 | -9/Materials | Lost 4 parts (1p2n1w) 1462 | -9/Materials | Core integrity fell below 50% 1472 | -9/Materials | Self-destructed Last Messages --------------- 01450_ U-05 Engineer lays Concrete. 01453_ Acquired 9 matter. 01456_ U-05 Engineer lays Concrete. 01457_ G-34 Mercenary destroyed. 01457_ U-05 Engineer lays Concrete. 01462_ Overheating: Core damaged (-80). 01462_ U-05 Engineer lays Concrete. 01463_ Power failure, Lgt. Ion Engine shutdown. 01465_ Adv. Beam Cannon destroyed. 01466_ U-05 Engineer builds a Door. 01467_ Overheating: Matter decay (-70). 01468_ Overheating: Lgt. Ion Engine damaged (-7). 01469_ Power failure, Lgt. Ion Engine shutdown. 01469_ Overheating: Adv. Beam Cannon damaged (-18). 01469_ Overheating: Visual Processing Unit damaged (-14). 01469_ Overheating: Wheel damaged (-16). 01470_ Overheating: Short circuit. 01470_ Visual Processing Unit permanently disabled. 01470_ K-01 Serf collects debris. 01471_ Adv. Beam Cannon destroyed. Map ----- +----------------------------------------------------+ | ?????????????????????????????????????? | | ?????????????????????????????????????? | | ?????????????????????????????????????? | | ?????????????????????????????????????? | | ?????????????????????????????????????? | | ?????????????????????????????????????? | | ?????????????????????????????????????? | | ?????????????????????????????????????? | | ?????????????????????????????????????? | | ?????????????????????????????????????? | | ?????????????????????????????????????? | | ?????????????????????????????????????? | | ??????????????????? ???????????????? | | ??????????????????? ??????????????? | | ??????????????????? ??????????????? | | ???????????????????# ??????????????? | | ???????????????????# ??????????????? | | ???????????????????+ ??????????????? | | ???????????????????# ??????????????? | | ???????????????????# ?????#????????? | | ???????????????????# ???? #????????? | | ???????????????????# #??? #????????? | | ???????????????????# #???%#????????? | | ???????????????????# ####+#######??? | | ??????????????????## ##=%**% #??? | | ???????####+####### =#@u*=[""" #??? | | ?????? **#== """ #??? | | ?????? %" |*=kY* """ #??? | | ?????? " =!%#%! #??? | | ????????# ####+## [!%#= #??? | | ??????????????????## ## !! #??? | | ??????????? ???????# ## !! #??? | | ??????????? ???????# ######### ##??? | | ??????????? ???????# #?????????#???? | | ??????????? #??????# #?????????????? | | ??????????? #??????## ##?????????????? | | ??????????? #???????# #??????????????? | | ??????????#a#???????# #??????????????? | | ??????????# #???????#/#########??????? | | ########### #???????#!* #??????? | | ## #########= #??????? | | ! ## # #??????? | | """ # # #??????? | | """""# + #??????? | | """""# w ! # #??????? | | """""# """ # #??????? | | """ # """ ## ! #??????? | | + """ k #############?????? | | ########## g""" ""# #?????? | | ?????????# T"# #?????? | +----------------------------------------------------+ Best States ------------- Heat Dissipation 28 Energy Generation 10 Energy Capacity 250 Matter Stores 300 Matter Capacity 300 Sight Range 18 Terrain Scan Density 10 Evasion (%) 50 Targeting Accuracy 5 Item Schematics ----------------- Med. Storage Unit | -10/Materials | Hacked Robot Schematics ------------------ None Fabricated ------------ Nothing Alien Tech Used ----------------- None Achievements -------------- None Challenges ------------ None Game ------ Seed FlakTeslaTreads Manual? 0 Play Time 00:17:58 Cumulative 28.7 hours Start 2019.11.20 @ 21:47:30 End 2019.11.28 @ 21:34:13 Sessions 2 Manual Loads 0 Difficulty Rogue Special Mode None Game No. 24 Rogue 1 Adventurer 23 Explorer 0 Win Type - Total 0 Types 0/0/0/0/0/0/0 Lore% 26 Gallery% 27 Achievement% 24 Wizard Run 0 Options --------- ASCII 0 Keyboard 1 Movement Numpad Keybinds 0 Fullscreen 1 Font 20/SmallcapsGlow Map View 66x50 Tactical HUD 1 Map Filters NONE Filters NONE Steam 1 RUN: 3dfd84f6-6ef0-4822-9d43-2c596bbc556f